fUST/lending_fUST_20250812
["ID","MTS","AMOUNT","RATE_DAILY","PERIOD"]
[378765328,1755007839214,-151.0,0.00018989,2]
[378765329,1755007839223,-151.0,0.00018989,2]
[378765330,1755007839232,-151.0,0.00018989,2]
[378765331,1755007839242,-151.0,0.00018989,2]
[378765332,1755007839253,-151.0,0.00018989,2]
[378765333,1755007839262,-2285.96,0.0001899,3]
[378765334,1755007839272,-1142.98,0.0001899,3]
[378765335,1755007839282,-1142.98,0.0001899,3]
[378765336,1755007839296,-202.02482474,0.00018993,2]
[378765337,1755007839306,-122209.75331581,0.00019,2]
[378765338,1755007839315,-325.0,0.00019,2]
[378765339,1755007839325,-325.0,0.00019,2]
[378765340,1755007839335,-325.0,0.00019,2]
[378765341,1755007839344,-166.0,0.00019,2]
[378765342,1755007839354,-160.35483779,0.00019,2]
[378765343,1755007839364,-166.0,0.00019,2]
[378765344,1755007839374,-166.0,0.00019,2]
[378765345,1755007839383,-166.0,0.00019,2]
[378765346,1755007839392,-166.0,0.00019,2]
[378765347,1755007839402,-166.0,0.00019,2]
[378765348,1755007839411,-172.0,0.00019,2]
[378765349,1755007839421,-1760.0,0.00019,2]
[378765350,1755007839431,-1760.0,0.00019,2]
[378765351,1755007839440,-1760.0,0.00019,2]
[378765352,1755007839449,-1760.0,0.00019,2]
[378765353,1755007839459,-1760.0,0.00019,2]
[378765354,1755007839469,-1760.0,0.00019,2]
[378765355,1755007839479,-1760.0,0.00019,2]
[378765356,1755007839489,-153.32695641,0.00019,2]
[378765357,1755007839500,-160.0,0.00019,2]
[378765358,1755007839510,-22518.10586344,0.00019,2]
[378765359,1755007839519,-412.0,0.00019023,2]
[378765361,1755007839529,-412.0,0.00019026,2]
[378765362,1755007839539,-412.0,0.00019054,2]
[378765363,1755007839548,-746.0,0.00019068,2]
[378765364,1755007839558,-412.0,0.0001907,2]
[378765365,1755007839567,-500.0,0.00019073,2]
[378765366,1755007839578,-501.09350321,0.00019073,2]
[378765367,1755007839587,-564.82436377,0.00019073,2]
[378765368,1755007839597,-484.81535733,0.00019073,2]
[378765369,1755007839606,-500.0,0.00019073,2]
[378765370,1755007839616,-500.0,0.00019073,2]
[378765371,1755007839625,-500.0,0.00019073,2]
[378765372,1755007839635,-500.0,0.00019073,2]
[378765373,1755007839644,-500.0,0.00019073,2]
[378765374,1755007839653,-500.0,0.00019073,2]
[378765375,1755007839663,-500.0,0.00019073,2]
[378765376,1755007839673,-500.0,0.00019073,2]
[378765377,1755007839682,-500.0,0.00019073,2]
[378765379,1755007839692,-502.65536766,0.00019073,2]
[378765380,1755007839701,-500.0,0.00019073,2]
[378765382,1755007839711,-500.0,0.00019073,2]
[378765383,1755007839720,-500.0,0.00019073,2]
[378765384,1755007839729,-500.0,0.00019073,2]
[378765385,1755007839738,-154.54553138,0.00019073,2]
[378765386,1755007839748,-151.0,0.00019073,2]
[378765387,1755007839757,-151.0,0.00019073,2]
[378765388,1755007839768,-202.02482474,0.00019087,2]
[378765389,1755007839778,-3017.534926,0.00019099,2]
[378765390,1755007839787,-4970.12417151,0.000191,2]
[378765391,1755007839797,-406768.89994655,0.000191,3]
[378765392,1755007839815,-151.0,0.00018889,2]
[378765393,1755007839825,-5476.94991001,0.000191,3]
[378765398,1755007840277,-151.0,0.00018889,2]
[378765399,1755007840288,-151.0,0.00018889,2]
[378765400,1755007840299,-151.0,0.00018889,2]
[378765401,1755007840308,-13810.4749139,0.000191,3]
[378765402,1755007840320,-42135.42314406,0.000191,3]
[378765403,1755007840330,-151.0,0.000191,2]
[378765404,1755007840340,-151.0,0.000191,2]
[378765405,1755007840349,-461.76100612,0.000191,3]
[378765406,1755007840358,-215.52532928,0.000191,3]
[378765407,1755007840367,-528.03329096,0.000191,3]
[378765408,1755007840377,-417.15472785,0.000191,3]
[378765409,1755007840386,-12673.43806534,0.000191,3]
[378765410,1755007840395,-746.0,0.00019104,2]
[378765411,1755007840405,-412.0,0.00019113,2]
[378765412,1755007840414,-14103.17891856,0.00019115,2]
[378765413,1755007840423,-624.914,0.00019142,2]
[378765414,1755007840432,-179.37862545,0.00019142,2]
[378765415,1755007840442,-746.0,0.00019149,2]
[378765416,1755007840451,-511.85605271,0.00019153,2]
[378765417,1755007840461,-151.0,0.00019178,2]
[378765418,1755007840472,-151.0,0.00019178,2]
[378765419,1755007840483,-151.0,0.00019178,2]
[378765420,1755007840492,-666.0,0.00019178,2]
[378765421,1755007840503,-202.02482474,0.0001918,2]
[378765422,1755007840512,-746.0,0.00019192,2]
[378765423,1755007840521,-746.0,0.00019198,2]
[378765424,1755007840530,-3000.0,0.000192,2]
[378765425,1755007840539,-3000.0,0.000192,2]
[378765426,1755007840549,-3000.0,0.000192,2]
[378765427,1755007840558,-151.453336,0.00019211,2]
[378765428,1755007840568,-151.0,0.00019211,2]
[378765429,1755007840578,-151.0,0.00019211,2]
[378765430,1755007840588,-252.2,0.00019215,2]
[378765431,1755007840597,-258.22936594,0.00019233,2]
[378765432,1755007840607,-212.4750954,0.00019262,2]
[378765433,1755007840616,-1162.0,0.00019262,2]
[378765434,1755007840626,-1844.0,0.00019262,2]
[378765435,1755007840636,-151.0,0.00019262,2]
[378765436,1755007840646,-500.0,0.00019262,2]
[378765437,1755007840656,-202.02482474,0.00019273,2]
[378765438,1755007840666,-151.0,0.00019329,2]
[378765439,1755007840675,-151.767247,0.00019329,2]
[378765440,1755007840685,-151.231577,0.00019329,2]
[378765441,1755007840695,-151.0,0.00019329,2]
[378765442,1755007840704,-438.256795,0.00019329,2]
[378765443,1755007840713,-438.256795,0.00019329,2]
[378765444,1755007840722,-1603.928569,0.00019329,2]
[378765445,1755007840732,-151.0,0.00019329,2]
[378765446,1755007840741,-1603.928569,0.00019329,2]
[378765447,1755007840753,-151.0,0.00019329,2]
[378765448,1755007840762,-151.0,0.00019329,2]
[378765449,1755007840771,-151.0,0.00019329,2]
[378765450,1755007840781,-476.076123,0.00019329,2]
[378765451,1755007840790,-476.076123,0.00019329,2]
[378765452,1755007840801,-151.0,0.00019329,2]
[378765453,1755007840811,-151.0,0.00019329,2]
[378765454,1755007840820,-151.0,0.00019329,2]
[378765455,1755007840830,-151.0,0.00019329,2]
[378765456,1755007840840,-151.0,0.00019329,2]
[378765457,1755007840850,-153.280523,0.00019329,2]
[378765458,1755007840859,-204.864048,0.00019329,2]
[378765459,1755007840869,-151.0,0.00019329,2]
[378765460,1755007840879,-259.578712,0.00019329,2]
[378765461,1755007840888,-204.416856,0.00019329,2]
[378765462,1755007840897,-204.416856,0.00019329,2]
[378765463,1755007840906,-151.0,0.00019329,2]
[378765464,1755007840916,-151.0,0.00019329,2]
[378765465,1755007840925,-216.893172,0.00019329,2]
[378765466,1755007840934,-216.893172,0.00019329,2]
[378765467,1755007840943,-151.0,0.00019329,2]
[378765468,1755007840952,-151.0,0.00019329,2]
[378765469,1755007840962,-189.175717,0.00019329,2]
[378765470,1755007840972,-301.469236,0.00019329,2]
[378765471,1755007840981,-189.175717,0.00019329,2]
[378765472,1755007840991,-151.0,0.00019329,2]
[378765473,1755007841001,-151.0,0.00019329,2]
[378765474,1755007841011,-100000.0,0.00019329,2]
[378765475,1755007841020,-151.0,0.00019342,2]
[378765476,1755007841029,-179.995624,0.00019342,2]
[378765477,1755007841039,-5000.0,0.00019342,2]
[378765478,1755007841048,-151.0,0.00019347,2]
[378765479,1755007841057,-151.0,0.00019347,2]
[378765480,1755007841066,-152.560095,0.00019354,2]
[378765481,1755007841075,-151.0,0.00019354,2]
[378765482,1755007841085,-160.0,0.00019356,5]
[378765483,1755007841094,-500.0,0.00019373,2]
[378765484,1755007841103,-501.34952174,0.00019373,2]
[378765485,1755007841114,-500.0,0.00019373,2]
[378765486,1755007841126,-500.0,0.00019373,2]
[378765487,1755007841135,-500.0,0.00019373,2]
[378765488,1755007841145,-500.0,0.00019373,2]
[378765489,1755007841153,-500.0,0.00019373,2]
[378765490,1755007841164,-500.0,0.00019373,2]
[378765491,1755007841175,-500.0,0.00019373,2]
[378765492,1755007841184,-500.0,0.00019373,2]
[378765493,1755007841194,-500.0,0.00019373,2]
[378765494,1755007841203,-500.0,0.00019373,2]
[378765495,1755007841213,-500.0,0.00019373,2]
[378765496,1755007841223,-500.29311373,0.00019373,2]
[378765497,1755007841233,-582.64632921,0.00019373,2]
[378765498,1755007841243,-503.59885237,0.00019373,2]
[378765499,1755007841253,-150.0,0.00019373,2]
[378765500,1755007841263,-500.0,0.00019373,2]
[378765501,1755007841272,-500.0,0.00019373,2]
[378765502,1755007841281,-500.0,0.00019373,2]
[378765503,1755007841294,-500.0,0.00019373,2]
[378765504,1755007841303,-158.92190781,0.00019373,2]
[378765505,1755007841312,-500.0,0.00019373,2]
[378765506,1755007841321,-501.69634139,0.00019373,2]
[378765507,1755007841331,-500.0,0.00019373,2]
[378765508,1755007841340,-500.0,0.00019373,2]
[378765509,1755007841350,-500.0,0.00019373,2]
[378765510,1755007841359,-500.0,0.00019373,2]
[378765511,1755007841369,-500.0,0.00019373,2]
[378765512,1755007841378,-500.0,0.00019373,2]
[378765513,1755007841388,-500.0,0.00019373,2]
[378765514,1755007841397,-500.0,0.00019373,2]
[378765515,1755007841406,-151.0,0.00019373,2]
[378765516,1755007841415,-151.0,0.00019373,2]
[378765517,1755007841425,-746.0,0.00019374,2]
[378765518,1755007841435,-151.0,0.00019401,2]
[378765519,1755007841444,-746.0,0.00019412,2]
[378765520,1755007841454,-151.0,0.00019437,2]
[378765521,1755007841464,-151.0,0.00019452,2]
[378765522,1755007841474,-151.0,0.00019452,2]
[378765523,1755007841484,-166.0,0.0001946,2]
[378765524,1755007841494,-160.0,0.0001946,2]
[378765525,1755007841505,-166.0,0.0001946,2]
[378765526,1755007841671,-203.04680538,0.0001946,2]
[378765527,1755007841681,-155.0,0.0001946,2]
[378765528,1755007841691,-1760.0,0.0001946,2]
[378765529,1755007841700,-155.0,0.0001946,2]
[378765530,1755007841710,-1760.0,0.0001946,2]
[378765531,1755007841719,-155.0,0.0001946,2]
[378765532,1755007841728,-1760.0,0.0001946,2]
[378765533,1755007841738,-625.43105529,0.0001946,2]
[378765534,1755007841748,-325.0,0.0001946,2]
[378765535,1755007841758,-325.0,0.0001946,2]
[378765536,1755007841767,-325.0,0.0001946,2]
[378765537,1755007841777,-325.0,0.0001946,2]
[378765538,1755007841786,-746.0,0.00019476,2]
[378765539,1755007841795,-151.584832,0.00019488,4]
[378765540,1755007841805,-252.2,0.00019493,2]
[378765541,1755007841814,-1000.0,0.00019521,2]
[378765542,1755007841824,-1000.0,0.00019521,2]
[378765543,1755007841834,-746.0,0.00019532,2]
[378765544,1755007841843,-1162.0,0.00019536,2]
[378765545,1755007841852,-1052.0407257,0.00019536,2]
[378765546,1755007842058,-791.9592743,0.00019536,2]
[378765547,1755007842067,-151.0,0.00019536,2]
[378765548,1755007842077,-500.0,0.00019536,2]
[378765549,1755007842086,-1000.0,0.00019621,2]
[378765550,1755007842096,-450.0687685,0.00019621,2]
[378765551,1755007842106,-1000.0,0.00019621,2]
[378765552,1755007842115,-1000.0,0.00019621,2]
[378765553,1755007842124,-1000.0,0.00019621,2]
[378765554,1755007842134,-1000.0,0.00019621,2]
[378765555,1755007842144,-322.9135319,0.00019621,2]
[378765556,1755007842153,-1000.0,0.00019621,2]
[378765557,1755007842162,-754.9371823,0.00019621,2]
[378765558,1755007842730,-245.0628177,0.00019621,2]
[378765559,1755007842740,-211.74076198,0.00019621,2]
[378765561,1755007842750,-1000.0,0.00019621,2]
[378765562,1755007842759,-1000.0,0.00019621,2]
[378765563,1755007842768,-983.44995291,0.00019621,2]
[378765565,1755007843276,-151.0,0.00018889,2]
[378765566,1755007843286,-132.65690581,0.00018889,2]
[378765576,1755007846222,-18.34309419,0.00018889,2]
[378765577,1755007846232,-151.0,0.00018889,2]
[378765578,1755007846241,-151.0,0.00018889,2]
[378765579,1755007846252,-151.0,0.00018889,2]
[378765580,1755007846261,-151.0,0.00018889,2]
[378765581,1755007846271,-151.0,0.00018889,2]
[378765582,1755007846280,-300.0,0.00018889,2]
[378765583,1755007846290,-151.0,0.00018889,2]
[378765584,1755007846302,-151.0,0.00018889,2]
[378765585,1755007846311,-300.0,0.00018889,2]
[378765586,1755007846321,-151.0,0.00018889,2]
[378765587,1755007846330,-300.0,0.00018889,2]
[378765588,1755007846341,-151.0,0.00018889,2]
[378765589,1755007846351,-151.0,0.00018889,2]
[378765590,1755007846360,-151.0,0.00019329,2]
[378765591,1755007846369,-325.0,0.0001946,2]
[378765592,1755007846380,-16.55004709,0.00019621,2]
[378765593,1755007846391,-60.6839833,0.00019621,2]
[378765596,1755007946875,460.0,0.00022284,60]
[378765600,1755008538514,212.74905644,0.00017528,2]
[378765601,1755008584126,666900.58545211,0.000175,2]
[378765602,1755008584155,510301.85318469,0.000175,2]
[378765603,1755008636749,335.4951,0.00013699,2]
[378765610,1755008917146,372397.28042422,0.00030967,60]
[378765650,1755009032472,-253.29003,0.00018069,2]
[378765656,1755009032497,-46.70997,0.00018069,2]
[378765658,1755009032506,-838.48215053,0.0001807,2]
[378765683,1755009038238,-2764.25653728,0.0001807,2]
[378765686,1755009038330,-770.37750259,0.0001807,2]
[378765687,1755009038348,-5252.05896771,0.0001807,2]
[378765688,1755009038359,-5056.85840394,0.0001807,2]
[378765689,1755009038441,-4843.00946538,0.0001807,2]
[378765702,1755009040493,-5374.95697257,0.0001807,2]
[378765703,1755009040503,-200.0,0.00018431,2]
[378765704,1755009040513,-200.0,0.00018431,2]
[378765705,1755009040523,-200.0,0.00018431,2]
[378765706,1755009040532,-200.0,0.00018431,2]
[378765707,1755009040541,-1168.28637947,0.00018863,2]
[378765708,1755009040551,-189.1,0.000189,2]
[378765709,1755009040560,-289.1906275,0.00018962,2]
[378765710,1755009040569,-160.0,0.00018963,2]
[378765711,1755009040580,-160.0,0.00018963,2]
[378765713,1755009040589,-216.70963917,0.00018963,2]
[378765714,1755009040598,-232.0176383,0.00018963,2]
[378765715,1755009040608,-160.0,0.00018963,2]
[378765716,1755009040617,-160.0,0.00018963,2]
[378765717,1755009040627,-160.0,0.00018963,2]
[378765718,1755009040636,-528.03329096,0.00018963,2]
[378765719,1755009040646,-215.52532928,0.00018963,2]
[378765720,1755009040656,-649.17992273,0.00018963,2]
[378765721,1755009040669,-12024.25814261,0.00018963,2]
[378765722,1755009040679,-160.0,0.00018963,2]
[378765723,1755009040688,-843.25559725,0.00018963,2]
[378765724,1755009040698,-417.15472785,0.00018963,2]
[378765725,1755009040707,-160.0,0.00018963,2]
[378765726,1755009040716,-461.76100612,0.00018963,2]
[378765727,1755009040726,-160.0,0.00018963,2]
[378765728,1755009040735,-1000.0,0.00018988,2]
[378765729,1755009040744,-1000.0,0.00018988,2]
[378765730,1755009040754,-1000.0,0.00018988,2]
[378765731,1755009040763,-1000.0,0.00018988,2]
[378765732,1755009040773,-1000.0,0.00018988,2]
[378765733,1755009040782,-1000.0,0.00018988,2]
[378765734,1755009040792,-1000.0,0.00018999,2]
[378765735,1755009040801,-1000.0,0.00018999,2]
[378765736,1755009040811,-1000.0,0.00018999,2]
[378765737,1755009040821,-1000.0,0.00018999,2]
[378765738,1755009040833,-1000.0,0.00018999,2]
[378765739,1755009040845,-1000.0,0.00018999,2]
[378765740,1755009040854,-3441.06612597,0.00019115,2]
[378765741,1755009040866,-780.72636775,0.00019115,2]
[378765790,1755009043562,-1360.95259135,0.00019115,2]
[378765855,1755009046383,-18800.55976438,0.00019115,2]
[378765858,1755009046410,-10852.84703705,0.00019115,2]
[378765860,1755009046420,-666.0,0.00019178,2]
[378765861,1755009046430,-189.1,0.00019182,2]
[378765862,1755009046440,-1230.08626005,0.000192,2]
[378765864,1755009046449,-222.9375506,0.00019219,2]
[378765865,1755009046459,-499.931,0.00019289,2]
[378765867,1755009046469,-191.21358373,0.00019318,2]
[378765869,1755009046482,-108.78641627,0.00019318,2]
[378765870,1755009046492,-146.10245456,0.00019318,2]
[378765873,1755009046509,-4.89754544,0.00019318,2]
[378765874,1755009046519,-151.0,0.00019318,2]
[378765875,1755009046529,-151.0,0.00019318,2]
[378765876,1755009046538,-251.36211604,0.00019318,2]
[378765877,1755009046550,-48.63788396,0.00019318,2]
[378765878,1755009046559,-151.0,0.00019318,2]
[378765879,1755009046569,-300.0,0.00019318,2]
[378765880,1755009046580,-151.0,0.00019318,2]
[378765881,1755009046589,-151.0,0.00019318,2]
[378765882,1755009046600,-151.0,0.00019318,2]
[378765883,1755009046610,-151.0,0.00019318,2]
[378765884,1755009046620,-151.0,0.00019318,2]
[378765885,1755009046630,-151.0,0.00019318,2]
[378765886,1755009046639,-300.0,0.00019318,2]
[378765887,1755009046649,-151.0,0.00019318,2]
[378765888,1755009046659,-151.0,0.00019318,2]
[378765889,1755009046668,-151.0,0.00019318,2]
[378765890,1755009046678,-151.0,0.00019318,2]
[378765891,1755009046687,-300.0,0.00019318,2]
[378765892,1755009046697,-176.25453225,0.00019318,2]
[378765893,1755009046707,-151.0,0.00019318,2]
[378765894,1755009046716,-151.0,0.00019318,2]
[378765895,1755009046725,-286.45298574,0.00019318,2]
[378765896,1755009046734,-15.06065185,0.00019318,2]
[378765897,1755009652077,318.720345,0.00013699,2]
[378765899,1755009735751,1724.25256033,0.000212,30]
[378765900,1755009827961,252.74,0.00022163,60]
[378765970,1755010238452,-1760.0,0.00017924,2]
[378765971,1755010238462,-1598.05433388,0.00017924,2]
[378765973,1755010238474,-161.94566612,0.00017924,2]
[378765975,1755010238483,-1760.0,0.00017924,2]
[378765976,1755010238492,-1760.0,0.00017924,2]
[378765977,1755010238502,-1760.0,0.00017924,2]
[378765978,1755010238511,-1760.0,0.00017924,2]
[378765979,1755010238520,-1760.0,0.00017924,2]
[378765980,1755010238530,-458.30044707,0.00017924,2]
[378765981,1755010238542,-1301.69955293,0.00017924,2]
[378765982,1755010238555,-325.0,0.00017924,2]
[378765983,1755010238564,-325.0,0.00017924,2]
[378765984,1755010238574,-325.0,0.00017924,2]
[378765985,1755010238583,-325.0,0.00017924,2]
[378765986,1755010238593,-325.0,0.00017924,2]
[378765987,1755010238603,-331.65964739,0.00017924,2]
[378765988,1755010238612,-300.0,0.00018278,2]
[378765989,1755010238622,-1200.0,0.00018278,2]
[378765990,1755010238631,-24900.0,0.00018279,2]
[378765991,1755010238640,-160.0,0.00018462,3]
[378765992,1755010238650,-200.0,0.00018644,15]
[378765993,1755010238659,-200.0,0.00018644,15]
[378765995,1755010238668,-200.0,0.00018644,15]
[378765996,1755010238678,-200.0,0.00018644,15]
[378765998,1755010238687,-157.6,0.00018902,2]
[378765999,1755010238696,-666.0,0.00019178,2]
[378766000,1755010238705,-157.6,0.00019184,2]
[378766001,1755010238714,-871.3981615,0.000192,2]
[378766002,1755010238723,-862.726464,0.000192,2]
[378766003,1755010238733,-861.66193749,0.00019208,2]
[378766004,1755010238742,-202.43343925,0.00019216,2]
[378766005,1755010238751,-12673.43806534,0.00019217,2]
[378766006,1755010238760,-12188.22453268,0.00019218,2]
[378766007,1755010238770,-861.66193747,0.00019241,2]
[378766008,1755010238779,-861.66193747,0.00019273,2]
[378766009,1755010238788,-1257.67,0.00019308,3]
[378766010,1755010238797,-959.8,0.00019308,3]
[378766011,1755010238806,-479.9,0.00019308,3]
[378766012,1755010238817,-239.95,0.00019308,3]
[378766013,1755010238826,-719.9,0.00019308,3]
[378766014,1755010238835,-160.0,0.00019313,2]
[378766015,1755010238844,-155.0,0.00019313,2]
[378766016,1755010238854,-155.0,0.00019313,2]
[378766017,1755010238864,-1760.0,0.00019313,2]
[378766018,1755010238873,-1760.0,0.00019313,2]
[378766019,1755010238883,-157.32361995,0.00019313,2]
[378766020,1755010238892,-1760.0,0.00019313,2]
[378766021,1755010238906,-1760.0,0.00019313,2]
[378766022,1755010238916,-1760.0,0.00019313,2]
[378766023,1755010238937,-1760.0,0.00019313,2]
[378766024,1755010238948,-1760.0,0.00019313,2]
[378766025,1755010238958,-1760.0,0.00019313,2]
[378766026,1755010238968,-1760.0,0.00019313,2]
[378766027,1755010238977,-1577.25727456,0.00019313,2]
[378766028,1755010239000,-182.74272544,0.00019313,2]
[378766029,1755010239009,-272.43977,0.00019313,2]
[378766030,1755010239021,-1487.56023,0.00019313,2]
[378766031,1755010239035,-1510.88246599,0.00019313,2]
[378766032,1755010239046,-249.11753401,0.00019313,2]
[378766033,1755010239056,-403.54316743,0.00019313,2]
[378766034,1755010239091,-1356.45683257,0.00019313,2]
[378766035,1755010239101,-1760.0,0.00019313,2]
[378766036,1755010239111,-1760.0,0.00019313,2]
[378766037,1755010239121,-325.0,0.00019313,2]
[378766038,1755010239131,-1760.0,0.00019313,2]
[378766039,1755010239140,-325.0,0.00019313,2]
[378766040,1755010239150,-313.02370924,0.00019313,2]
[378766041,1755010239162,-1446.97629076,0.00019313,2]
[378766042,1755010239172,-325.0,0.00019313,2]
[378766043,1755010239182,-1760.0,0.00019313,2]
[378766044,1755010239192,-325.0,0.00019313,2]
[378766045,1755010239201,-709.66037684,0.00019313,2]
[378766046,1755010239214,-1050.33962316,0.00019313,2]
[378766047,1755010239224,-325.0,0.00019313,2]
[378766048,1755010239234,-1760.0,0.00019313,2]
[378766049,1755010239244,-325.0,0.00019313,2]
[378766050,1755010239253,-1760.0,0.00019313,2]
[378766051,1755010239262,-1760.0,0.00019313,2]
[378766052,1755010239272,-1760.0,0.00019313,2]
[378766053,1755010239281,-107.80896281,0.00019313,2]
[378766220,1755010246716,-217.19103719,0.00019313,2]
[378766221,1755010246726,-948.27446218,0.00019313,2]
[378766222,1755010246736,-325.0,0.00019313,2]
[378766223,1755010246746,-325.0,0.00019313,2]
[378766224,1755010246755,-325.0,0.00019313,2]
[378766225,1755010246764,-325.0,0.00019313,2]
[378766226,1755010246773,-325.0,0.00019313,2]
[378766227,1755010246783,-325.0,0.00019313,2]
[378766228,1755010246793,-325.0,0.00019313,2]
[378766229,1755010246802,-325.0,0.00019313,2]
[378766230,1755010246812,-325.0,0.00019313,2]
[378766231,1755010246821,-325.0,0.00019313,2]
[378766232,1755010246831,-325.0,0.00019313,2]
[378766233,1755010246841,-325.0,0.00019313,2]
[378766234,1755010246850,-325.0,0.00019313,2]
[378766235,1755010246860,-325.0,0.00019313,2]
[378766236,1755010246869,-325.0,0.00019313,2]
[378766237,1755010246878,-245.53450063,0.00019313,2]
[378766238,1755010246913,-79.46549937,0.00019313,2]
[378766240,1755010246923,-325.0,0.00019313,2]
[378766241,1755010246932,-325.0,0.00019313,2]
[378766242,1755010246942,-325.0,0.00019313,2]
[378766243,1755010246952,-325.0,0.00019313,2]
[378766244,1755010246961,-325.0,0.00019313,2]
[378766245,1755010246971,-325.0,0.00019313,2]
[378766246,1755010246980,-325.0,0.00019313,2]
[378766247,1755010246990,-325.0,0.00019313,2]
[378766248,1755010246999,-325.0,0.00019313,2]
[378766249,1755010247008,-325.0,0.00019313,2]
[378766250,1755010247017,-325.0,0.00019313,2]
[378766251,1755010247027,-325.0,0.00019313,2]
[378766252,1755010247036,-325.0,0.00019313,2]
[378766253,1755010247045,-325.0,0.00019313,2]
[378766254,1755010247054,-325.0,0.00019313,2]
[378766255,1755010247064,-325.0,0.00019313,2]
[378766256,1755010247073,-325.0,0.00019313,2]
[378766257,1755010247083,-325.0,0.00019313,2]
[378766258,1755010247092,-325.0,0.00019313,2]
[378766259,1755010247102,-325.0,0.00019313,2]
[378766260,1755010247111,-325.0,0.00019313,2]
[378766261,1755010247121,-325.0,0.00019313,2]
[378766262,1755010247130,-325.0,0.00019313,2]
[378766263,1755010247139,-325.0,0.00019313,2]
[378766264,1755010247149,-325.0,0.00019313,2]
[378766265,1755010247159,-325.0,0.00019313,2]
[378766266,1755010247168,-325.0,0.00019313,2]
[378766267,1755010247177,-325.0,0.00019313,2]
[378766268,1755010247187,-203.29424896,0.00019313,2]
[378766269,1755010247197,-528.03329096,0.00019315,2]
[378766270,1755010247207,-160.0,0.00019315,2]
[378766271,1755010247217,-215.52532928,0.00019315,2]
[378766272,1755010247227,-417.15472785,0.00019315,2]
[378766273,1755010247236,-843.25559725,0.00019315,2]
[378766274,1755010247246,-160.0,0.00019315,2]
[378766275,1755010247255,-160.0,0.00019315,2]
[378766276,1755010247265,-216.70963917,0.00019315,2]
[378766277,1755010247275,-461.76100612,0.00019315,2]
[378766278,1755010247284,-160.0,0.00019315,2]
[378766279,1755010247294,-160.0,0.00019315,2]
[378766280,1755010247305,-232.0176383,0.00019315,2]
[378766281,1755010247314,-160.0,0.00019315,2]
[378766282,1755010247325,-151.0,0.00019318,2]
[378766283,1755010247335,-151.0,0.00019318,2]
[378766284,1755010247344,-284.93934815,0.00019318,2]
[378766285,1755010247353,-151.8420255,0.00019318,2]
[378766286,1755010247363,-151.0,0.00019318,2]
[378766287,1755010247373,-151.0,0.00019318,2]
[378766288,1755010247383,-500.0,0.00019318,2]
[378766289,1755010247393,-151.0,0.00019318,2]
[378766290,1755010247402,-151.0,0.00019318,2]
[378766291,1755010247412,-151.0,0.00019318,2]
[378766292,1755010247421,-500.0,0.00019318,2]
[378766293,1755010247430,-151.0,0.00019318,2]
[378766294,1755010247440,-151.0,0.00019318,2]
[378766295,1755010247449,-500.0,0.00019318,2]
[378766296,1755010247459,-151.0,0.00019318,2]
[378766297,1755010247468,-151.0,0.00019318,2]
[378766298,1755010247478,-500.0,0.00019318,2]
[378766299,1755010247487,-151.0,0.00019318,2]
[378766300,1755010247497,-151.0,0.00019318,2]
[378766301,1755010247506,-500.0,0.00019318,2]